lending/lending_fUSD_20251022
["ID","MTS","AMOUNT","RATE_DAILY","PERIOD"]
[392074459,1761136304100,508.72601981,0.00043835,120]
[392074460,1761136304156,696.1,0.00041494,30]
[392074461,1761136304209,513.52783775,0.00043835,120]
[392074462,1761136304254,500.0,0.00043835,120]
[392074467,1761136635577,-36937.85345321,0.00034883,30]
[392074468,1761136635603,-150.0,0.00034883,30]
[392074469,1761136635630,-362912.14654679,0.00034883,60]
[392074470,1761136640907,-400000.0,0.00035313,60]
[392074471,1761136646344,-237087.85345321,0.00035313,60]
[392074472,1761136646370,-1000000.0,0.00035313,45]
[392074473,1761136646394,-1000000.0,0.00035313,30]
[392074474,1761136646418,-796977.63,0.00035313,30]
[392074475,1761136646447,-200.0,0.00035313,120]
[392074476,1761136782086,155.00077113,0.00035313,30]
[392074518,1761137335428,269.25,0.00013699,2]
[392074553,1761137432152,-154.61,0.00016973,2]
[392074554,1761137432163,-269.25,0.00020187,2]
[392074555,1761137432173,-154.61,0.0002546,2]
[392074556,1761137432182,-269.25,0.00026676,2]
[392074557,1761137432196,-250.00000002,0.00029059,120]
[392074558,1761137432205,-270.5735801,0.00029635,120]
[392074559,1761137432214,-270.5735801,0.00030212,120]
[392074560,1761137432224,-270.5735801,0.00030789,120]
[392074561,1761137432233,-153.0,0.00031,120]
[392074562,1761137432243,-163.0,0.00031,120]
[392074563,1761137432253,-270.5735801,0.00031366,120]
[392074564,1761137432262,-270.5735801,0.00031942,120]
[392074565,1761137432271,-195.0,0.00032168,2]
[392074566,1761137432281,-196.0,0.00032185,7]
[392074567,1761137432290,-150.99,0.00032185,2]
[392074568,1761137432300,-1200.66,0.00032185,2]
[392074569,1761137432309,-195.0,0.00032247,2]
[392074570,1761137432319,-196.0,0.00032287,2]
[392074571,1761137432328,-196.0,0.00032325,2]
[392074572,1761137432338,-270.5735801,0.00032519,120]
[392074573,1761137432347,-196.0,0.00032657,2]
[392074574,1761137432357,-1000.0,0.00032901,2]
[392074575,1761137432367,-270.5735801,0.00033096,120]
[392074576,1761137432377,-195.0,0.00033138,2]
[392074577,1761137432390,-269.25,0.00033165,2]
[392074578,1761137432400,-195.0,0.0003318,7]
[392074579,1761137432410,-195.0,0.00033275,2]
[392074580,1761137432420,-3142.86493928,0.0003348,2]
[392074583,1761137432466,-958.01119287,0.0003348,2]
[392074586,1761137432477,-445.12116543,0.0003348,2]
[392074588,1761137432488,-1702.50270242,0.0003348,2]
[392074589,1761137432498,-195.0,0.0003348,2]
[392074590,1761137432507,-196.0,0.0003357,2]
[392074591,1761137432516,-270.5735801,0.00033673,120]
[392074592,1761137432525,-429.66,0.00033673,36]
[392074594,1761137432535,-150.0,0.00033673,2]
[392074596,1761137432544,-195.0,0.00033701,2]
[392074598,1761137432554,-195.0,0.00033777,7]
[392074600,1761137432563,-195.0,0.00033885,2]
[392074602,1761137432572,-195.0,0.00033897,7]
[392074604,1761137432581,-196.0,0.00033897,7]
[392074606,1761137432590,-154.61,0.00033946,2]
[392074608,1761137432603,-195.0,0.00034109,2]
[392074610,1761137432611,-666.0,0.00034172,3]
[392074612,1761137432620,-270.5735801,0.0003425,120]
[392074614,1761137432629,-1000.0,0.00034312,13]
[392074615,1761137432639,-1000.0,0.00034312,13]
[392074617,1761137432649,-1000.0,0.00034312,13]
[392074620,1761137432659,-1000.0,0.00034312,13]
[392074622,1761137432669,-1000.0,0.00034312,13]
[392074624,1761137432677,-1000.0,0.00034312,13]
[392074626,1761137432686,-1000.0,0.00034312,13]
[392074628,1761137432695,-1000.0,0.00034312,13]
[392074630,1761137432704,-195.0,0.00034326,7]
[392074632,1761137432713,-199.57760385,0.000344,120]
[392074634,1761137432722,-180.32647662,0.000344,120]
[392074636,1761137432731,-1037.86509974,0.000344,120]
[392074638,1761137432740,-185.1003484,0.000344,120]
[392074640,1761137432749,-194.99,0.00034497,30]
[392074642,1761137432759,-150.0,0.00034507,2]
[392074644,1761137432771,-500.0,0.00034507,2]
[392074646,1761137432780,-500.0,0.00034507,2]
[392074648,1761137432792,-150.0,0.00034507,2]
[392074650,1761137432801,-500.0,0.00034507,2]
[392074652,1761137432810,-500.0,0.00034507,2]
[392074654,1761137432819,-500.0,0.00034507,2]
[392074656,1761137432828,-150.0,0.00034507,2]
[392074658,1761137432840,-150.0,0.00034507,2]
[392074660,1761137432849,-150.0,0.00034507,2]
[392074662,1761137432858,-500.0,0.00034507,2]
[392074664,1761137432868,-500.0,0.00034507,2]
[392074666,1761137432877,-181.75197015,0.00034507,2]
[392074668,1761137432886,-151.89863775,0.00034507,2]
[392074670,1761137432895,-500.0,0.00034507,2]
[392074672,1761137432904,-500.0,0.00034507,2]
[392074674,1761137432914,-1081.3146,0.00034548,10]
[392074675,1761137432923,-150.0,0.00034562,2]
[392074676,1761137432932,-500.0,0.00034562,2]
[392074677,1761137432942,-500.0,0.00034562,2]
[392074679,1761137432951,-150.0,0.00034562,2]
[392074681,1761137432960,-500.0,0.00034562,2]
[392074682,1761137432969,-500.0,0.00034562,2]
[392074683,1761137432978,-500.0,0.00034562,2]
[392074684,1761137432987,-150.0,0.00034562,2]
[392074685,1761137432997,-150.0,0.00034562,2]
[392074686,1761137433006,-500.0,0.00034562,2]
[392074687,1761137433015,-500.0,0.00034562,2]
[392074688,1761137433025,-500.0,0.00034562,2]
[392074689,1761137433035,-500.0,0.00034562,2]
[392074690,1761137433044,-557.12,0.00034577,120]
[392074691,1761137433053,-272.85009093,0.00034578,60]
[392074692,1761137433062,-150.0,0.00034578,60]
[392074693,1761137433071,-150.0,0.000346,30]
[392074694,1761137433081,-195.0,0.000346,13]
[392074695,1761137433090,-150.0,0.00034617,2]
[392074696,1761137433099,-450.0,0.00034617,2]
[392074697,1761137433109,-500.0,0.00034617,2]
[392074698,1761137433118,-150.0,0.00034617,2]
[392074699,1761137433127,-500.0,0.00034617,2]
[392074700,1761137433136,-500.0,0.00034617,2]
[392074701,1761137433146,-300.0,0.00034617,2]
[392074702,1761137433156,-150.0,0.00034617,2]
[392074703,1761137433165,-265.94026784,0.00034617,2]
[392074704,1761137433181,-500.0,0.00034617,2]
[392074705,1761137433195,-250.0,0.00034617,2]
[392074706,1761137433205,-500.0,0.00034617,2]
[392074707,1761137433215,-195.0,0.00034619,2]
[392074708,1761137433225,-195.0,0.00034621,2]
[392074709,1761137433235,-202.87028618,0.00034671,2]
[392074710,1761137433246,-272.0,0.00034671,2]
[392074711,1761137433256,-179.31213936,0.00034671,2]
[392074712,1761137433266,-500.0,0.00034671,2]
[392074713,1761137433278,-536.79605905,0.00034671,2]
[392074714,1761137433288,-150.0,0.00034671,2]
[392074715,1761137433298,-500.0,0.00034671,2]
[392074716,1761137433308,-500.0,0.00034671,2]
[392074717,1761137433318,-158.28035432,0.00034726,2]
[392074718,1761137433328,-500.0,0.00034726,2]
[392074719,1761137433338,-500.0,0.00034726,2]
[392074720,1761137433348,-200.0,0.0003477,2]
[392074721,1761137433358,-270.5735801,0.00034826,120]
[392074722,1761137433374,-195.0,0.00034894,7]
[392074723,1761137433385,-405.0,0.00034928,20]
[392074724,1761137433395,-195.0,0.00034948,2]
[392074725,1761137433404,-1662.85,0.00035,120]
[392074726,1761137433415,-160.0,0.00035,30]
[392074727,1761137433425,-195.0,0.00035076,2]
[392074728,1761137433435,-1421.72211889,0.00035188,2]
[392074729,1761137433445,-158.20169034,0.00035208,30]
[392074730,1761137433455,-156.3,0.00035208,2]
[392074731,1761137433464,-195.0,0.00035213,2]
[392074732,1761137433475,-405.0,0.00035288,20]
[392074733,1761137433485,-801.2512199,0.00035376,2]
[392074734,1761137433495,-199.57760385,0.000354,120]
[392074735,1761137433505,-180.32647662,0.000354,120]
[392074736,1761137433515,-1037.86509974,0.000354,120]
[392074737,1761137433524,-185.1003484,0.000354,120]
[392074738,1761137433534,-270.5735801,0.00035403,120]
[392074739,1761137433544,-293.88905532,0.00035616,2]
[392074740,1761137433554,-196.0,0.00035623,2]
[392074741,1761137433563,-405.0,0.00035648,20]
[392074742,1761137433573,-716.16327,0.00035888,30]
[392074743,1761137433582,-270.5735801,0.0003598,120]
[392074744,1761137433592,-405.0,0.00036008,20]
[392074745,1761137433602,-655.39598062,0.00036008,20]
[392074746,1761137433612,-716.16327,0.00036088,30]
[392074747,1761137433622,-153.0,0.000361,120]
[392074748,1761137433632,-716.16327,0.00036288,30]
[392074749,1761137433641,-405.0,0.00036368,20]
[392074750,1761137433650,-716.16327,0.00036488,30]
[392074751,1761137433660,-199.57760385,0.000365,120]
[392074752,1761137433670,-180.32647662,0.000365,120]
[392074753,1761137433679,-1037.86509974,0.000365,120]
[392074754,1761137433690,-270.5735801,0.00036557,120]
[392074755,1761137433700,-250.0,0.00036557,2]
[392074756,1761137433709,-716.16327,0.00036688,30]
[392074757,1761137433718,-405.0,0.00036728,20]
[392074758,1761137433728,-716.16327,0.00036888,30]
[392074759,1761137433738,-2387.2109,0.00036888,7]
[392074760,1761137433749,-1000.0,0.00037014,2]
[392074761,1761137433759,-716.16327,0.00037088,30]
[392074762,1761137433772,-405.0,0.00037089,20]
[392074763,1761137433782,-270.5735801,0.00037133,120]
[392074764,1761137433793,-338.94995825,0.000372,120]
[392074765,1761137433803,-338.94995822,0.000372,120]
[392074766,1761137433815,-716.16327,0.00037288,30]
[392074767,1761137433824,-716.16327,0.00037488,30]
[392074768,1761137433835,-199.57760385,0.000375,120]
[392074769,1761137433845,-1037.86509974,0.000375,120]
[392074770,1761137433855,-163.0,0.000376,120]
[392074771,1761137433865,-716.16327,0.00037688,30]
[392074772,1761137433875,-270.5735801,0.0003771,120]
[392074773,1761137433885,-1444.0,0.00037753,120]
[392074774,1761137433895,-716.16327,0.00037888,30]
[392074775,1761137433904,-716.16327,0.00038088,30]
[392074776,1761137433914,-270.5735801,0.00038287,120]
[392074777,1761137433923,-716.16327,0.00038288,30]
[392074778,1761137433933,-716.16327,0.00038488,30]
[392074779,1761137433943,-716.16327,0.00038688,30]
[392074780,1761137433953,-1037.86509974,0.000387,120]
[392074781,1761137433962,-270.5735801,0.00038864,120]
[392074782,1761137433971,-557.12,0.000389,120]
[392074783,1761137433981,-716.16327,0.00039088,30]
[392074784,1761137433991,-16353.0,0.00039194,2]
[392074785,1761137434000,-716.16327,0.00039288,30]
[392074786,1761137434010,-6622.3695,0.00039341,2]
[392074787,1761137434021,-270.5735801,0.00039441,120]
[392074788,1761137434030,-194.99,0.00039478,120]
[392074789,1761137434039,-716.16327,0.00039488,30]
[392074790,1761137434049,-269.25,0.00039654,2]
[392074791,1761137434058,-338.94995822,0.00039663,120]
[392074792,1761137434068,-716.16327,0.00039688,30]
[392074793,1761137434078,-801.2512199,0.00039763,2]
[392074794,1761137434087,-1037.86509974,0.000398,120]
[392074795,1761137434100,-716.16327,0.00039888,30]
[392074796,1761137434110,-204.82367686,0.0003989,2]
[392074797,1761137434120,-434.37428866,0.00039999,31]
[392074798,1761137434129,-2500.0,0.0004,120]
[392074799,1761137434139,-270.5735801,0.00040018,120]
[392074800,1761137434148,-250.00000002,0.00040018,120]
[392074801,1761137434158,-716.16327,0.00040088,30]
[392074802,1761137434167,-716.16327,0.00040288,30]
[392074803,1761137434177,-190.41,0.00040441,14]
[392074804,1761137434186,-716.16327,0.00040488,30]
[392074805,1761137434196,-191.77,0.00040535,2]
[392074806,1761137434205,-527.67,0.00040535,2]
[392074807,1761137434215,-1200.82,0.00040672,2]
[392074808,1761137434226,-150.0,0.00040672,2]
[392074809,1761137434235,-414.15,0.00040672,2]
[392074810,1761137434245,-150.0,0.00040672,2]
[392074811,1761137434255,-150.0,0.00040672,2]
[392074812,1761137434265,-150.0,0.00040672,2]
[392074813,1761137434275,-1200.82,0.00040672,2]
[392074814,1761137434284,-414.15,0.00040672,2]
[392074815,1761137434294,-1193.85,0.00040672,2]
[392074816,1761137434303,-414.15,0.00040672,2]
[392074817,1761137434313,-414.15,0.00040672,2]
[392074818,1761137434322,-414.15,0.00040672,2]
[392074819,1761137434332,-405.77,0.00040672,2]
[392074820,1761137434342,-716.16327,0.00040688,30]
[392074821,1761137434352,-716.16327,0.00040888,30]
[392074822,1761137434362,-950.68,0.00040901,2]
[392074823,1761137434372,-696.1,0.00040901,2]
[392074824,1761137434383,-696.1,0.00040901,2]
[392074825,1761137434393,-696.1,0.00040901,2]
[392074826,1761137434404,-696.1,0.00040901,2]
[392074827,1761137434413,-696.1,0.00040901,2]
[392074828,1761137434424,-1037.86509974,0.00041,120]
[392074829,1761137434434,-150.0,0.00041038,2]
[392074830,1761137434444,-335.71,0.00041038,2]
[392074831,1761137434453,-716.16327,0.00041088,30]
[392074832,1761137434463,-3222.7,0.00041096,120]
[392074833,1761137434476,-491.0,0.00041096,2]
[392074834,1761137434486,-1000.0,0.00041126,2]
[392074835,1761137434496,-491.0,0.00041151,2]
[392074836,1761137434506,-153.0,0.000412,120]
[392074837,1761137434517,-491.0,0.00041206,2]
[392074838,1761137434527,-491.0,0.0004126,2]
[392074839,1761137434538,-716.16327,0.00041288,30]
[392074840,1761137434548,-491.0,0.00041315,2]
[392074841,1761137434557,-491.0,0.0004137,2]
[392074842,1761137434567,-491.0,0.00041425,2]
[392074843,1761137434577,-491.0,0.0004148,2]
[392074844,1761137434587,-716.16327,0.00041488,30]
[392074845,1761137434598,-491.0,0.00041534,2]
[392074846,1761137434609,-491.0,0.00041589,2]
[392074847,1761137434620,-491.0,0.00041644,2]
[392074848,1761137434629,-716.16327,0.00041688,30]
[392074849,1761137434639,-491.0,0.00041699,2]
[392074850,1761137434649,-491.0,0.00041754,2]
[392074851,1761137434658,-491.0,0.00041808,2]
[392074852,1761137434668,-431.16045145,0.00041863,2]
[392074853,1761137434699,-59.83954855,0.00041863,2]
[392074854,1761137434708,-716.16327,0.00041888,30]
[392074855,1761137434718,-491.0,0.00041918,2]
[392074856,1761137434729,-491.0,0.00041973,2]
[392074857,1761137434740,-299.47361975,0.00042027,7]
[392074858,1761137434749,-491.0,0.00042028,2]
[392074859,1761137434759,-491.0,0.00042082,2]
[392074860,1761137434773,-491.0,0.00042137,2]
[392074861,1761137434783,-491.0,0.00042192,2]
[392074862,1761137434793,-491.0,0.00042247,2]
[392074863,1761137434803,-696.1,0.0004225,30]
[392074864,1761137434812,-1037.86509974,0.000423,120]
[392074865,1761137434822,-491.0,0.00042301,2]
[392074866,1761137434833,-499.11120205,0.00042356,2]
[392074867,1761137434843,-1373.48849516,0.0004255,120]
[392074868,1761137434858,-5000.0,0.0004266,120]
[392074869,1761137434867,-688.01253654,0.000427,15]
[392074870,1761137434877,-999.99999999,0.000428,30]
[392074871,1761137434887,-1857.74523101,0.00043,120]
[392074872,1761137434896,-227.45841503,0.00043,120]
[392074873,1761137434906,-688.01253649,0.00043059,15]
[392074874,1761137434916,-557.12,0.00043222,120]
[392074875,1761137434925,-688.01253649,0.00043417,15]
[392074876,1761137434935,-1037.86509974,0.000435,120]
[392074877,1761137434945,-417.78101719,0.00043725,28]
[392074878,1761137434954,-639.4249,0.00043725,2]
[392074879,1761137434964,-374.68584808,0.00043735,15]
[392074880,1761137434974,-1629.64082638,0.00043735,16]
[392074881,1761137434984,-964.39764005,0.00043735,2]
[392074882,1761137435001,-35.60235995,0.00043735,2]
[392074883,1761137435012,-2126.75684536,0.00043735,120]
[392074884,1761137435024,-1622.4,0.00043735,120]
[392074885,1761137435037,-596.60464793,0.00043735,120]
[392074886,1761137435053,-654.23850671,0.00043735,120]
[392074887,1761137435063,-688.01253649,0.00043776,15]
[392074888,1761137435073,-300.0,0.000438,15]
[392074889,1761137435082,-280.08,0.000438,15]
[392074890,1761137435091,-276.26,0.00043815,2]
[392074891,1761137435100,-276.26,0.00043815,2]
[392074892,1761137435109,-276.26,0.00043815,2]
[392074893,1761137435118,-367.21,0.00043815,2]
[392074894,1761137435127,-500.0,0.00043824,120]
[392074895,1761137435137,-500.0,0.00043824,120]
[392074896,1761137435146,-291.21221558,0.00043824,2]
[392074897,1761137435161,-216.8255896,0.00034617,2]
[392074898,1761137435171,-177.35159289,0.00043824,2]
[392074899,1761137435180,-273.84430536,0.00043825,3]
[392074901,1761137438045,-150.0,0.00034507,2]
[392074902,1761137438055,-150.0,0.00034562,2]
[392074903,1761137438064,-77.61823771,0.00034617,2]
[392074904,1761137438076,-72.38176229,0.00034617,2]
[392074905,1761137438085,-150.0,0.00034671,2]
[392074906,1761137438095,-250.22106936,0.00034726,2]
[392074907,1761137438104,-44.64884835,0.00039457,2]
[392074908,1761137438142,-1377.07327054,0.00039457,2]
[392074909,1761137438151,-11257.32672946,0.00043825,3]
[392074910,1761137438163,-197520.27178418,0.00043825,3]
[392074911,1761137438173,-66585.4275376,0.00043825,3]
[392074918,1761137438379,-276.26,0.00043825,2]
[392074920,1761137438389,-367.21,0.00043825,2]
[392074922,1761137438399,-500.0,0.00043834,120]
[392074924,1761137438409,-500.0,0.00043834,120]
[392074927,1761137438419,-500.0,0.00043835,2]
[392074928,1761137438429,-500.0,0.00043835,120]
[392074930,1761137438438,-500.0,0.00043835,120]
[392074932,1761137438448,-519.68167641,0.00043835,120]
[392074934,1761137438458,-683.25,0.00043835,120]
[392074937,1761137438468,-506.8533987,0.00043835,120]
[392074939,1761137438478,-500.0,0.00043835,120]
[392074942,1761137438487,-527.98514177,0.00043835,120]
[392074943,1761137438497,-518.96530961,0.00043835,120]
[392074946,1761137438507,-500.0,0.00043835,120]
[392074947,1761137438517,-668.65,0.00043835,60]
[392074950,1761137438527,-510.28244526,0.00043835,120]
[392074952,1761137438536,-500.0,0.00043835,120]
[392074953,1761137438546,-507.10280406,0.00043835,120]
[392074956,1761137438556,-500.0,0.00043835,120]
[392074958,1761137438565,-509.84306097,0.00043835,120]
[392074960,1761137438575,-500.0,0.00043835,120]
[392074962,1761137438585,-512.37146265,0.00043835,120]
[392074964,1761137438595,-530.96321564,0.00043835,120]
[392074966,1761137438605,-500.0,0.00043835,120]
[392074967,1761137438614,-500.0,0.00043835,120]
[392074970,1761137438624,-535.72590978,0.00043835,120]
[392074972,1761137438633,-550.47537781,0.00043835,120]
[392074974,1761137438644,-500.0,0.00043835,120]
[392074976,1761137438653,-526.97389516,0.00043835,120]
[392074977,1761137438662,-504.42977759,0.00043835,120]
[392074979,1761137438671,-500.0,0.00043835,120]
[392074981,1761137438682,-500.0,0.00043835,120]
[392074983,1761137438692,-500.7342724,0.00043835,120]
[392074985,1761137438702,-500.0,0.00043835,120]
[392074987,1761137438711,-500.0,0.00043835,120]
[392074989,1761137438720,-348.88605347,0.00043835,120]
[392074991,1761137438730,-500.0,0.00043835,120]
[392074993,1761137438739,-500.0,0.00043835,120]
[392074995,1761137438750,-500.0,0.00043835,120]
[392074997,1761137438760,-500.0,0.00043835,120]
[392074999,1761137438774,-500.0,0.00043835,120]
[392075001,1761137438783,-500.0,0.00043835,120]
[392075003,1761137438792,-541.00098827,0.00043835,120]
[392075005,1761137438802,-506.43482344,0.00043835,120]
[392075007,1761137438813,-500.0,0.00043835,120]
[392075009,1761137438823,-500.0,0.00043835,120]
[392075011,1761137438833,-500.0,0.00043835,120]
[392075013,1761137438843,-510.3884452,0.00043835,120]
[392075015,1761137438852,-500.0,0.00043835,120]
[392075017,1761137438863,-608.3065795,0.00043835,120]
[392075019,1761137438873,-500.0,0.00043835,120]
[392075021,1761137438883,-555.24351461,0.00043835,120]
[392075023,1761137438893,-500.0,0.00043835,120]
[392075025,1761137438903,-500.0,0.00043835,120]
[392075027,1761137438913,-500.0,0.00043835,120]
[392075029,1761137438922,-504.28,0.00043835,120]
[392075031,1761137438932,-500.0,0.00043835,120]
[392075033,1761137438942,-501.79697115,0.00043835,120]
[392075035,1761137438951,-500.0,0.00043835,120]
[392075037,1761137438961,-500.0,0.00043835,120]
[392075039,1761137438970,-500.0,0.00043835,120]
[392075041,1761137438980,-500.0,0.00043835,120]
[392075043,1761137438991,-500.0,0.00043835,120]
[392075045,1761137439000,-500.0,0.00043835,120]
[392075047,1761137439010,-500.0,0.00043835,120]
[392075049,1761137439020,-500.0,0.00043835,120]
[392075051,1761137439030,-500.0,0.00043835,120]
[392075053,1761137439039,-308.54597866,0.00043835,120]
[392075055,1761137439048,-500.0,0.00043835,120]
[392075057,1761137439057,-517.50731272,0.00043835,120]
[392075059,1761137439067,-500.0,0.00043835,120]
[392075060,1761137439076,-500.0,0.00043835,120]
[392075062,1761137439086,-525.92764963,0.00043835,120]
[392075064,1761137439096,-500.0,0.00043835,120]
[392075066,1761137439106,-500.0,0.00043835,120]
[392075069,1761137439116,-500.0,0.00043835,120]
[392075071,1761137439125,-518.137372,0.00043835,120]
[392075073,1761137439135,-500.0,0.00043835,120]
[392075075,1761137439151,-500.0,0.00043835,30]
[392075077,1761137439162,-500.0,0.00043835,120]
[392075078,1761137439172,-500.0,0.00043835,120]
[392075080,1761137439182,-678.16,0.00043835,120]
[392075082,1761137439192,-500.0,0.00043835,120]
[392075084,1761137439202,-953.82,0.00043835,120]
[392075086,1761137439211,-500.0,0.00043835,120]
[392075088,1761137439220,-500.0,0.00043835,120]
[392075090,1761137439230,-500.0,0.00043835,120]
[392075092,1761137439240,-500.0,0.00043835,120]
[392075094,1761137439249,-500.0,0.00043835,120]
[392075096,1761137439258,-500.0,0.00043835,120]
[392075099,1761137439277,-500.0,0.00043835,120]
[392075101,1761137439288,-1131.8,0.00043835,120]
[392075103,1761137439298,-502.36746973,0.00043835,120]
[392075105,1761137439307,-500.0,0.00043835,120]
[392075107,1761137439317,-502.24241737,0.00043835,120]
[392075109,1761137439327,-509.18994783,0.00043835,120]
[392075111,1761137439336,-538.28,0.00043835,120]
[392075113,1761137439346,-500.0,0.00043835,120]
[392075115,1761137439355,-1212.18,0.00043835,120]
[392075117,1761137439364,-500.0,0.00043835,120]
[392075119,1761137439374,-507.18969636,0.00043835,120]
[392075121,1761137439383,-500.0,0.00043835,120]
[392075123,1761137439393,-500.0,0.00043835,120]
[392075126,1761137439402,-500.0,0.00043835,120]
[392075128,1761137439412,-500.0,0.00043835,120]
[392075130,1761137439420,-500.0,0.00043835,120]
[392075132,1761137439430,-500.0,0.00043835,120]
[392075134,1761137439439,-205.0,0.00043835,120]
[392075136,1761137439449,-500.0,0.00043835,120]
[392075138,1761137439458,-500.0,0.00043835,120]
[392075140,1761137439467,-500.0,0.00043835,120]
[392075142,1761137439476,-514.95676727,0.00043835,120]
[392075144,1761137439485,-500.0,0.00043835,120]
[392075146,1761137439494,-508.84426789,0.00043835,120]
[392075148,1761137439503,-971.57,0.00043835,120]
[392075150,1761137439511,-500.0,0.00043835,120]
[392075152,1761137439520,-500.0,0.00043835,120]
[392075154,1761137439530,-500.0,0.00043835,120]
[392075156,1761137439539,-500.0,0.00043835,120]
[392075158,1761137439548,-500.0,0.00043835,120]
[392075160,1761137439557,-500.0,0.00043835,120]
[392075162,1761137439565,-500.0,0.00043835,120]
[392075164,1761137439575,-500.0,0.00043835,120]
[392075166,1761137439584,-500.0,0.00043835,2]
[392075168,1761137439595,-500.0,0.00043835,120]
[392075170,1761137439606,-500.0,0.00043835,120]
[392075172,1761137439615,-500.0,0.00043835,120]
[392075174,1761137439626,-500.0,0.00043835,120]
[392075176,1761137439639,-500.0,0.00043835,120]
[392075179,1761137439650,-500.0,0.00043835,120]
[392075181,1761137439659,-500.0,0.00043835,120]
[392075183,1761137439668,-507.49070334,0.00043835,120]
[392075184,1761137439678,-500.0,0.00043835,120]
[392075186,1761137439687,-500.0,0.00043835,120]
[392075188,1761137439698,-500.0,0.00043835,120]
[392075191,1761137439708,-500.0,0.00043835,120]
[392075193,1761137439717,-500.0,0.00043835,120]
[392075194,1761137439727,-500.0,0.00043835,120]
[392075196,1761137439736,-500.0,0.00043835,2]
[392075199,1761137439746,-500.0,0.00043835,120]
[392075201,1761137439756,-530.00402881,0.00043835,120]
[392075203,1761137439770,-500.0,0.00043835,120]
[392075205,1761137439780,-500.0,0.00043835,120]
[392075207,1761137439790,-500.0,0.00043835,120]
[392075209,1761137439800,-500.0,0.00043835,90]
[392075211,1761137439811,-500.0,0.00043835,120]
[392075213,1761137439820,-506.07,0.00043835,120]
[392075215,1761137439830,-500.0,0.00043835,120]
[392075217,1761137439843,-548.81130462,0.00043835,120]
[392075219,1761137439853,-500.0,0.00043835,120]
[392075221,1761137439863,-500.0,0.00043835,120]
[392075223,1761137439873,-500.0,0.00043835,120]
[392075225,1761137439883,-500.0,0.00043835,120]
[392075227,1761137439892,-500.0,0.00043835,120]
[392075229,1761137439903,-503.94157166,0.00043835,120]
[392075231,1761137439913,-500.0,0.00043835,120]
[392075234,1761137439922,-500.0,0.00043835,120]
[392075237,1761137439932,-500.0,0.00043835,120]
[392075239,1761137439942,-500.0,0.00043835,120]
[392075244,1761137439952,-533.0498603,0.00043835,120]
[392075248,1761137439962,-501.26859739,0.00043835,120]
[392075250,1761137439971,-500.0,0.00043835,120]
[392075252,1761137439981,-787.36,0.00043835,120]
[392075254,1761137439990,-523.89122321,0.00043835,120]
[392075256,1761137439999,-654.91,0.00043835,120]
[392075259,1761137440010,-615.86894597,0.00043835,120]
[392075261,1761137440019,-503.97001787,0.00043835,120]
[392075263,1761137440032,-500.0,0.00043835,120]
[392075265,1761137440042,-550.98193623,0.00043835,120]
[392075267,1761137440052,-609.54,0.00043835,120]
[392075269,1761137440061,-533.42442626,0.00043835,120]
[392075271,1761137440071,-1546.84,0.00043835,120]
[392075273,1761137440080,-500.0,0.00043835,120]
[392075275,1761137440090,-512.22,0.00043835,120]
[392075277,1761137440099,-521.0594368,0.00043835,120]